[Event "Schack-SM 2024: Sverigemastarklassen"]
[Site "Fortnox Arena, Hejaregatan 5, Vaxjo, Sweden"]
[Date "2024.07.02"]
[Round "4.1"]
[White "Seo, Jung Min"]
[Black "Semcesen, Daniel"]
[Result "1/2-1/2"]
[TimeControl "90 minutes for 40 moves + 30 minutes for the rest of the game + 30 seconds per move from move one."]
[WhiteTitle "IM"]
[BlackTitle "GM"]
[WhiteElo "2442"]
[BlackElo "2451"]

1. e4 {[%clk 01:30:57]} {[%emt 01:19:38]} e5 {[%clk 01:30:49]} {[%emt
00:00:10]} 2. Nf3 {[%clk 01:31:25]} {[%emt 00:00:03]} Nc6 {[%clk 01:31:11]}
{[%emt 00:00:08]} 3. Bb5 {[%clk 01:31:53]} {[%emt 00:00:03]} a6 {[%clk
01:31:19]} {[%emt 00:00:21]} 4. Ba4 {[%clk 01:32:06]} {[%emt 00:00:19]} Nf6
{[%clk 01:31:41]} {[%emt 00:00:07]} 5. O-O {[%clk 01:32:32]} {[%emt 00:00:04]}
Be7 {[%clk 01:31:40]} {[%emt 00:00:32]} 6. Re1 {[%clk 01:32:16]} {[%emt
00:00:46]} b5 {[%clk 01:31:29]} {[%emt 00:00:41]} 7. Bb3 {[%clk 01:32:38]}
{[%emt 00:00:09]} d6 {[%clk 01:31:55]} {[%emt 00:00:04]} 8. c3 {[%clk
01:33:02]} {[%emt 00:00:06]} O-O {[%clk 01:32:18]} {[%emt 00:00:05]} 9. h3
{[%clk 01:33:30]} {[%emt 00:00:04]} Re8 {[%clk 01:31:32]} {[%emt 00:01:16]} 10.
d4 {[%clk 01:33:05]} {[%emt 00:00:55]} h6 {[%clk 01:31:41]} {[%emt 00:00:20]}
11. Nbd2 {[%clk 01:30:07]} {[%emt 00:03:28]} Bf8 {[%clk 01:31:58]} {[%emt
00:00:15]} 12. Bc2 {[%clk 01:27:56]} {[%emt 00:02:40]} Bd7 {[%clk 01:29:08]}
{[%emt 00:03:19]} 13. Nf1 {[%clk 01:23:12]} {[%emt 00:05:14]} Na5 {[%clk
01:26:42]} {[%emt 00:02:57]} 14. b3 {[%clk 01:19:57]} {[%emt 00:03:45]} Nc6
{[%clk 01:22:15]} {[%emt 00:04:56]} 15. d5 {[%clk 01:10:26]} {[%emt 00:10:01]}
Ne7 {[%clk 01:20:51]} {[%emt 00:01:54]} 16. c4 {[%clk 01:09:56]} {[%emt
00:01:01]} c6 {[%clk 01:13:53]} {[%emt 00:07:26]} 17. Be3 {[%clk 01:01:48]}
{[%emt 00:08:39]} b4 {[%clk 00:57:26]} {[%emt 00:16:57]} 18. Qd2 {[%clk
00:57:55]} {[%emt 00:04:24]} a5 {[%clk 00:51:28]} {[%emt 00:06:28]} 19. Ng3
{[%clk 00:45:40]} {[%emt 00:12:44]} c5 {[%clk 00:46:46]} {[%emt 00:05:13]} 20.
a3 {[%clk 00:45:17]} {[%emt 00:00:54]} Qb8 {[%clk 00:34:46]} {[%emt 00:12:28]}
21. Ra2 {[%clk 00:42:21]} {[%emt 00:03:27]} Ng6 {[%clk 00:32:52]} {[%emt
00:02:24]} 22. Rea1 {[%clk 00:42:40]} {[%emt 00:00:12]} Qb7 {[%clk 00:33:17]}
{[%emt 00:00:04]} 23. Kh2 {[%clk 00:38:19]} {[%emt 00:04:51]} Be7 {[%clk
00:32:17]} {[%emt 00:01:29]} 24. Bd3 {[%clk 00:35:09]} {[%emt 00:03:42]} Reb8
{[%clk 00:28:15]} {[%emt 00:04:31]} 25. Ne2 {[%clk 00:26:48]} {[%emt 00:08:51]}
Qc8 {[%clk 00:27:49]} {[%emt 00:00:56]} 26. Qd1 {[%clk 00:23:14]} {[%emt
00:04:05]} Qe8 {[%clk 00:26:06]} {[%emt 00:02:12]} 27. axb4 {[%clk 00:23:11]}
{[%emt 00:00:34]} axb4 {[%clk 00:26:17]} {[%emt 00:00:18]} 28. Ra7 {[%clk
00:22:23]} {[%emt 00:01:17]} Rxa7 {[%clk 00:24:32]} {[%emt 00:02:16]} 29. Rxa7
{[%clk 00:22:52]} {[%emt 00:00:03]} Ra8 {[%clk 00:24:34]} {[%emt 00:00:27]} 30.
Qa1 {[%clk 00:23:03]} {[%emt 00:00:19]} Rxa7 {[%clk 00:24:39]} {[%emt
00:00:25]} 31. Qxa7 {[%clk 00:23:24]} {[%emt 00:00:09]} Nh5 {[%clk 00:20:34]}
{[%emt 00:04:34]} 32. Qc7 {[%clk 00:20:12]} {[%emt 00:03:43]} Qd8 {[%clk
00:15:24]} {[%emt 00:05:39]} 33. Qxd8+ {[%clk 00:18:53]} {[%emt 00:01:49]} Bxd8
{[%clk 00:15:45]} {[%emt 00:00:08]} 34. g3 {[%clk 00:19:11]} {[%emt 00:00:13]}
Kf8 {[%clk 00:15:18]} {[%emt 00:00:58]} 35. Nd2 {[%clk 00:18:52]} {[%emt
00:00:47]} Bg5 {[%clk 00:15:13]} {[%emt 00:00:36]} 36. Nf1 {[%clk 00:18:07]}
{[%emt 00:01:14]} Bc8 {[%clk 00:12:09]} {[%emt 00:03:35]} 37. h4 {[%clk
00:16:11]} {[%emt 00:02:26]} Bxe3 {[%clk 00:11:51]} {[%emt 00:00:47]} 38. Nxe3
{[%clk 00:16:41]} {[%emt 00:00:01]} Ne7 {[%clk 00:10:28]} {[%emt 00:01:53]} 39.
Kg2 {[%clk 00:16:36]} {[%emt 00:00:35]} g6 {[%clk 00:09:20]} {[%emt 00:01:39]}
40. f4 {[%clk 00:15:35]} {[%emt 00:01:30]} f6 {[%clk 00:09:31]} {[%emt
00:00:19]} 41. Kf3 {[%clk 00:14:15]} {[%emt 00:01:51]} Kf7 {[%clk 00:08:44]}
{[%emt 00:01:17]} 42. Bc2 {[%clk 00:09:39]} {[%emt 00:05:07]} Bd7 {[%clk
00:08:50]} {[%emt 00:00:24]} 43. Bd3 {[%clk 00:09:58]} {[%emt 00:00:10]} Bc8
{[%clk 00:09:15]} {[%emt 00:00:06]} 44. Bc2 {[%clk 00:09:46]} {[%emt 00:00:40]}
Bd7 {[%clk 00:09:39]} {[%emt 00:00:07]} 45. Bd3 {[%clk 00:09:58]} {[%emt
00:00:18]} Bc8 {[%clk 00:10:03]} {[%emt 00:00:06]} 1/2-1/2

[Event "Schack-SM 2024: Sverigemastarklassen"]
[Site "Fortnox Arena, Hejaregatan 5, Vaxjo, Sweden"]
[Date "2024.07.02"]
[Round "4.2"]
[White "Hillarp Persson, Tiger"]
[Black "Lokander, Martin"]
[Result "1/2-1/2"]
[TimeControl "90 minutes for 40 moves + 30 minutes for the rest of the game + 30 seconds per move from move one."]
[WhiteTitle "GM"]
[BlackTitle "IM"]
[WhiteElo "2455"]
[BlackElo "2474"]

1. c4 {[%clk 01:30:56]} {[%emt 00:00:04]} b6 {[%clk 01:27:04]} {[%emt
00:03:57]} 2. Nc3 {[%clk 01:30:01]} {[%emt 00:01:25]} Bb7 {[%clk 01:26:41]}
{[%emt 00:00:52]} 3. e4 {[%clk 01:30:20]} {[%emt 00:00:10]} e6 {[%clk
01:26:25]} {[%emt 00:00:47]} 4. Nge2 {[%clk 01:30:21]} {[%emt 00:00:28]} Nf6
{[%clk 01:25:59]} {[%emt 00:00:57]} 5. f3 {[%clk 01:20:00]} {[%emt 00:10:52]}
d5 {[%clk 01:26:08]} {[%emt 00:00:20]} 6. cxd5 {[%clk 01:20:19]} {[%emt
00:00:12]} exd5 {[%clk 01:26:34]} {[%emt 00:00:03]} 7. e5 {[%clk 01:20:41]}
{[%emt 00:00:09]} d4 {[%clk 01:26:46]} {[%emt 00:00:18]} 8. exf6 {[%clk
01:11:18]} {[%emt 00:09:53]} dxc3 {[%clk 01:26:56]} {[%emt 00:00:20]} 9. fxg7
{[%clk 00:52:30]} {[%emt 00:19:17]} Bxg7 {[%clk 01:26:57]} {[%emt 00:00:29]} 10.
dxc3 {[%clk 00:52:50]} {[%emt 00:00:10]} Nd7 {[%clk 01:27:12]} {[%emt
00:00:17]} 11. Ng3 {[%clk 00:26:50]} {[%emt 00:26:28]} Qf6 {[%clk 01:27:29]}
{[%emt 00:00:13]} 12. Be2 {[%clk 00:20:32]} {[%emt 00:06:48]} O-O-O {[%clk
01:21:15]} {[%emt 00:06:45]} 13. O-O {[%clk 00:20:44]} {[%emt 00:00:18]} h5
{[%clk 01:20:53]} {[%emt 00:00:52]} 14. Qc2 {[%clk 00:20:10]} {[%emt 00:01:05]}
h4 {[%clk 01:15:44]} {[%emt 00:05:39]} 15. Nf5 {[%clk 00:19:59]} {[%emt
00:00:40]} Bf8 {[%clk 01:05:01]} {[%emt 00:11:13]} 16. Be3 {[%clk 00:12:34]}
{[%emt 00:07:55]} Rh5 {[%clk 01:02:34]} {[%emt 00:02:57]} 17. Nd4 {[%clk
00:11:29]} {[%emt 00:01:36]} Re8 {[%clk 00:49:38]} {[%emt 00:13:27]} 18. Qd2
{[%clk 00:11:04]} {[%emt 00:00:53]} c5 {[%clk 00:45:42]} {[%emt 00:04:26]} 19.
Nc2 {[%clk 00:09:59]} {[%emt 00:01:36]} Rd5 {[%clk 00:44:58]} {[%emt 00:01:15]}
20. Qc1 {[%clk 00:10:12]} {[%emt 00:00:17]} h3 {[%clk 00:38:39]} {[%emt
00:06:48]} 21. g3 {[%clk 00:10:36]} {[%emt 00:00:07]} Ne5 {[%clk 00:31:57]}
{[%emt 00:07:12]} 22. Ne1 {[%clk 00:10:58]} {[%emt 00:00:07]} Qe6 {[%clk
00:25:09]} {[%emt 00:07:18]} 23. Rf2 {[%clk 00:08:27]} {[%emt 00:03:01]} Ng6
{[%clk 00:23:29]} {[%emt 00:02:10]} 24. Nc2 {[%clk 00:07:10]} {[%emt 00:01:48]}
Re5 {[%clk 00:22:20]} {[%emt 00:01:39]} 25. Bf1 {[%clk 00:07:33]} {[%emt
00:00:07]} Rxe3 {[%clk 00:20:52]} {[%emt 00:01:56]} 26. Qxe3 {[%clk 00:07:08]}
{[%emt 00:00:54]} Qxe3 {[%clk 00:21:19]} {[%emt 00:00:04]} 27. Nxe3 {[%clk
00:07:17]} {[%emt 00:00:21]} Rxe3 {[%clk 00:21:46]} {[%emt 00:00:04]} 28. Bxh3+
{[%clk 00:07:32]} {[%emt 00:00:13]} Kc7 {[%clk 00:21:53]} {[%emt 00:00:22]} 29.
f4 {[%clk 00:07:41]} {[%emt 00:00:22]} Nh4 {[%clk 00:21:26]} {[%emt 00:00:57]}
30. Rd1 {[%clk 00:06:48]} {[%emt 00:01:23]} f5 {[%clk 00:19:19]} {[%emt
00:02:37]} 31. Rfd2 {[%clk 00:04:01]} {[%emt 00:03:17]} Bc6 {[%clk 00:13:12]}
{[%emt 00:06:37]} 32. Kf2 {[%clk 00:02:27]} {[%emt 00:02:04]} Rf3+ {[%clk
00:13:30]} {[%emt 00:00:12]} 33. Ke2 {[%clk 00:01:46]} {[%emt 00:01:11]} c4
{[%clk 00:08:19]} {[%emt 00:05:41]} 34. Bf1 {[%clk 00:00:44]} {[%emt 00:01:32]}
Bc5 {[%clk 00:05:31]} {[%emt 00:03:19]} 35. gxh4 {[%clk 00:00:50]} {[%emt
00:00:24]} Re3+ {[%clk 00:05:37]} {[%emt 00:00:23]} 36. Kf2 {[%clk 00:01:08]}
{[%emt 00:00:12]} Rxc3+ {[%clk 00:05:43]} {[%emt 00:00:24]} 37. Ke1 {[%clk
00:00:49]} {[%emt 00:00:49]} Re3+ {[%clk 00:05:48]} {[%emt 00:00:25]} 38. Re2
{[%clk 00:01:07]} {[%emt 00:00:12]} Bb4+ {[%clk 00:05:41]} {[%emt 00:00:37]} 39.
Rdd2 {[%clk 00:00:39]} {[%emt 00:00:58]} Rf3 {[%clk 00:01:33]} {[%emt
00:04:39]} 40. Bg2 {[%clk 00:00:45]} {[%emt 00:00:22]} Rxf4 {[%clk 00:01:25]}
{[%emt 00:00:39]} 41. Bxc6 {[%clk 00:28:35]} {[%emt 00:02:40]} Kxc6 {[%clk
00:31:28]} {[%emt 00:00:27]} 42. Re6+ {[%clk 00:13:29]} {[%emt 00:15:35]} Kb7
{[%clk 00:27:50]} {[%emt 00:04:09]} 43. a3 {[%clk 00:11:44]} {[%emt 00:02:15]}
Bxd2+ {[%clk 00:27:51]} {[%emt 00:00:29]} 44. Kxd2 {[%clk 00:12:06]} {[%emt
00:00:08]} Rxh4 {[%clk 00:28:09]} {[%emt 00:00:12]} 45. Rf6 {[%clk 00:11:14]}
{[%emt 00:01:22]} Rxh2+ {[%clk 00:27:18]} {[%emt 00:01:22]} 46. Kc3 {[%clk
00:11:35]} {[%emt 00:00:07]} Rf2 {[%clk 00:23:38]} {[%emt 00:04:11]} 47. Kxc4
{[%clk 00:11:06]} {[%emt 00:00:59]} Rf4+ {[%clk 00:23:50]} {[%emt 00:00:19]} 48.
Kc3 {[%clk 00:10:53]} {[%emt 00:00:43]} a5 {[%clk 00:15:39]} {[%emt 00:08:41]}
49. a4 {[%clk 00:06:57]} {[%emt 00:04:25]} Rf1 {[%clk 00:15:59]} {[%emt
00:00:11]} 50. Kd4 {[%clk 00:06:48]} {[%emt 00:00:40]} f4 {[%clk 00:10:50]}
{[%emt 00:05:38]} 51. Rf7+ {[%clk 00:07:09]} {[%emt 00:00:09]} Kc6 {[%clk
00:03:58]} {[%emt 00:07:22]} 52. Rf6+ {[%clk 00:07:31]} {[%emt 00:00:08]} Kc7
{[%clk 00:04:27]} {[%emt 00:00:01]} 53. Rf7+ {[%clk 00:07:35]} {[%emt
00:00:27]} Kd6 {[%clk 00:04:13]} {[%emt 00:00:44]} 54. Rf6+ {[%clk 00:07:50]}
{[%emt 00:00:14]} Kc7 {[%clk 00:04:29]} {[%emt 00:00:14]} 55. Rf7+ {[%clk
00:08:12]} {[%emt 00:00:07]} Kc6 {[%clk 00:04:52]} {[%emt 00:00:07]} 56. Rf6+
{[%clk 00:08:37]} {[%emt 00:00:05]} Kb7 {[%clk 00:05:20]} {[%emt 00:00:03]} 57.
Rf7+ {[%clk 00:09:00]} {[%emt 00:00:07]} Ka6 {[%clk 00:05:48]} {[%emt
00:00:03]} 58. Kc4 {[%clk 00:07:53]} {[%emt 00:01:36]} Rf3 {[%clk 00:05:29]}
{[%emt 00:00:49]} 59. b3 {[%clk 00:05:17]} {[%emt 00:03:06]} Rf1 {[%clk
00:05:33]} {[%emt 00:00:25]} 60. Kc3 {[%clk 00:05:37]} {[%emt 00:00:10]} Rf2
{[%clk 00:05:47]} {[%emt 00:00:16]} 61. Kd3 {[%clk 00:05:52]} {[%emt 00:00:15]}
f3 {[%clk 00:05:04]} {[%emt 00:01:14]} 62. Kc3 {[%clk 00:06:16]} {[%emt
00:00:06]} Rf1 {[%clk 00:04:59]} {[%emt 00:00:35]} 63. Kb2 {[%clk 00:06:39]}
{[%emt 00:00:07]} f2 {[%clk 00:05:16]} {[%emt 00:00:13]} 64. Ka2 {[%clk
00:07:04]} {[%emt 00:00:04]} Rc1 {[%clk 00:05:29]} {[%emt 00:00:18]} 65. Rxf2
{[%clk 00:07:28]} {[%emt 00:00:07]} 1/2-1/2

[Event "Schack-SM 2024: Sverigemastarklassen"]
[Site "Fortnox Arena, Hejaregatan 5, Vaxjo, Sweden"]
[Date "2024.07.02"]
[Round "4.3"]
[White "Blomqvist, Erik"]
[Black "Sivuk, Vitaly"]
[Result "0-1"]
[TimeControl "90 minutes for 40 moves + 30 minutes for the rest of the game + 30 seconds per move from move one."]
[WhiteTitle "GM"]
[BlackTitle "GM"]
[WhiteElo "2527"]
[BlackElo "2569"]

1. e4 {[%clk 01:30:55]} {[%emt 00:00:04]} e5 {[%clk 01:30:46]} {[%emt
00:00:15]} 2. Nf3 {[%clk 01:31:17]} {[%emt 00:00:07]} Nc6 {[%clk 01:31:10]}
{[%emt 00:00:08]} 3. Bc4 {[%clk 01:31:40]} {[%emt 00:00:06]} Be7 {[%clk
01:30:42]} {[%emt 00:00:58]} 4. O-O {[%clk 01:30:39]} {[%emt 00:01:31]} d6
{[%clk 01:29:21]} {[%emt 00:01:51]} 5. a4 {[%clk 01:30:35]} {[%emt 00:00:34]}
Nf6 {[%clk 01:24:08]} {[%emt 00:05:42]} 6. d3 {[%clk 01:30:39]} {[%emt
00:00:26]} a5 {[%clk 01:19:19]} {[%emt 00:05:19]} 7. Re1 {[%clk 01:28:13]}
{[%emt 00:02:55]} O-O {[%clk 01:16:30]} {[%emt 00:03:20]} 8. Nc3 {[%clk
01:27:59]} {[%emt 00:00:43]} Bg4 {[%clk 01:11:11]} {[%emt 00:05:49]} 9. h3
{[%clk 01:27:46]} {[%emt 00:00:44]} Bh5 {[%clk 01:11:35]} {[%emt 00:00:07]} 10.
Nd5 {[%clk 01:25:23]} {[%emt 00:02:52]} Nxd5 {[%clk 01:02:40]} {[%emt
00:09:25]} 11. Bxd5 {[%clk 01:25:15]} {[%emt 00:00:38]} Nb4 {[%clk 01:01:37]}
{[%emt 00:01:33]} 12. Bb3 {[%clk 01:24:59]} {[%emt 00:00:47]} c6 {[%clk
01:01:23]} {[%emt 00:00:43]} 13. Qe2 {[%clk 01:03:57]} {[%emt 00:21:32]} Kh8
{[%clk 00:59:15]} {[%emt 00:02:37]} 14. g4 {[%clk 01:03:29]} {[%emt 00:00:59]}
Bg6 {[%clk 00:59:40]} {[%emt 00:00:05]} 15. Be3 {[%clk 00:52:29]} {[%emt
00:11:30]} f6 {[%clk 00:51:46]} {[%emt 00:08:23]} 16. Nh4 {[%clk 00:50:33]}
{[%emt 00:02:28]} Bf7 {[%clk 00:52:07]} {[%emt 00:00:09]} 17. Bxf7 {[%clk
00:50:49]} {[%emt 00:00:15]} Rxf7 {[%clk 00:52:32]} {[%emt 00:00:03]} 18. Nf5
{[%clk 00:49:48]} {[%emt 00:01:31]} d5 {[%clk 00:49:28]} {[%emt 00:03:34]} 19.
h4 {[%clk 00:45:13]} {[%emt 00:05:04]} Bf8 {[%clk 00:47:12]} {[%emt 00:02:47]}
20. h5 {[%clk 00:44:34]} {[%emt 00:01:09]} Qd7 {[%clk 00:43:16]} {[%emt
00:04:26]} 21. Kg2 {[%clk 00:42:58]} {[%emt 00:02:07]} Na6 {[%clk 00:41:07]}
{[%emt 00:02:38]} 22. d4 {[%clk 00:34:50]} {[%emt 00:08:38]} exd4 {[%clk
00:31:16]} {[%emt 00:10:21]} 23. Bxd4 {[%clk 00:35:12]} {[%emt 00:00:09]} Re8
{[%clk 00:31:34]} {[%emt 00:00:12]} 24. Qf3 {[%clk 00:32:40]} {[%emt 00:03:02]}
Nb4 {[%clk 00:31:24]} {[%emt 00:00:40]} 25. Rac1 {[%clk 00:29:23]} {[%emt
00:03:47]} c5 {[%clk 00:21:00]} {[%emt 00:10:54]} 26. Bc3 {[%clk 00:28:50]}
{[%emt 00:01:04]} dxe4 {[%clk 00:11:56]} {[%emt 00:09:32]} 27. Rxe4 {[%clk
00:29:13]} {[%emt 00:00:07]} Rxe4 {[%clk 00:12:19]} {[%emt 00:00:06]} 28. Qxe4
{[%clk 00:29:39]} {[%emt 00:00:05]} Qxa4 {[%clk 00:12:35]} {[%emt 00:00:13]} 29.
g5 {[%clk 00:07:18]} {[%emt 00:22:51]} Qc6 {[%clk 00:10:47]} {[%emt 00:02:19]}
30. Qxc6 {[%clk 00:07:21]} {[%emt 00:00:27]} Nxc6 {[%clk 00:11:12]} {[%emt
00:00:06]} 31. gxf6 {[%clk 00:07:09]} {[%emt 00:00:42]} gxf6 {[%clk 00:11:09]}
{[%emt 00:00:31]} 32. Kf3 {[%clk 00:03:38]} {[%emt 00:04:02]} a4 {[%clk
00:08:55]} {[%emt 00:02:45]} 33. Re1 {[%clk 00:01:11]} {[%emt 00:02:57]} Rd7
{[%clk 00:03:39]} {[%emt 00:05:45]} 34. Re4 {[%clk 00:00:36]} {[%emt 00:01:05]}
b5 {[%clk 00:03:27]} {[%emt 00:00:42]} 35. Re6 {[%clk 00:00:31]} {[%emt
00:00:36]} Ne5+ {[%clk 00:01:20]} {[%emt 00:02:37]} 36. Ke4 {[%clk 00:00:47]}
{[%emt 00:00:13]} b4 {[%clk 00:01:33]} {[%emt 00:00:18]} 37. Rxf6 {[%clk
00:01:05]} {[%emt 00:00:13]} Be7 {[%clk 00:00:57]} {[%emt 00:01:04]} 38. Bxe5
{[%clk 00:00:33]} {[%emt 00:01:02]} Bxf6 {[%clk 00:01:19]} {[%emt 00:00:09]} 39.
Bxf6+ {[%clk 00:00:59]} {[%emt 00:00:03]} Kg8 {[%clk 00:01:45]} {[%emt
00:00:05]} 40. Ne3 {[%clk 00:00:36]} {[%emt 00:00:53]} a3 {[%clk 00:01:30]}
{[%emt 00:00:45]} 41. bxa3 {[%clk 00:18:27]} {[%emt 00:12:38]} bxa3 {[%clk
00:31:36]} {[%emt 00:00:24]} 42. f4 {[%clk 00:13:55]} {[%emt 00:05:03]} Rd4+
{[%clk 00:31:33]} {[%emt 00:00:33]} 0-1

[Event "Schack-SM 2024: Sverigemastarklassen"]
[Site "Fortnox Arena, Hejaregatan 5, Vaxjo, Sweden"]
[Date "2024.07.02"]
[Round "4.4"]
[White "Galperin, Platon"]
[Black "Ostlund, Joar"]
[Result "1-0"]
[TimeControl "90 minutes for 40 moves + 30 minutes for the rest of the game + 30 seconds per move from move one."]
[WhiteTitle "GM"]
[BlackTitle "FM"]
[WhiteElo "2551"]
[BlackElo "2334"]

1. e4 {[%clk 01:30:43]} {[%emt 00:00:16]} e5 {[%clk 01:30:54]} {[%emt
00:00:08]} 2. Nf3 {[%clk 01:31:10]} {[%emt 00:00:03]} Nc6 {[%clk 01:31:17]}
{[%emt 00:00:06]} 3. Bb5 {[%clk 01:31:37]} {[%emt 00:00:05]} Nf6 {[%clk
01:31:33]} {[%emt 00:00:13]} 4. O-O {[%clk 01:32:01]} {[%emt 00:00:06]} Nxe4
{[%clk 01:31:55]} {[%emt 00:00:07]} 5. Re1 {[%clk 01:32:28]} {[%emt 00:00:03]}
Nd6 {[%clk 01:32:13]} {[%emt 00:00:14]} 6. a4 {[%clk 01:32:54]} {[%emt
00:00:04]} Be7 {[%clk 01:28:38]} {[%emt 00:04:06]} 7. Nc3 {[%clk 01:33:13]}
{[%emt 00:00:12]} O-O {[%clk 01:17:36]} {[%emt 00:11:30]} 8. d4 {[%clk
01:33:05]} {[%emt 00:00:38]} Nxb5 {[%clk 01:05:43]} {[%emt 00:12:23]} 9. axb5
{[%clk 01:33:22]} {[%emt 00:00:14]} Nxd4 {[%clk 01:06:05]} {[%emt 00:00:08]} 10.
Nxd4 {[%clk 01:33:18]} {[%emt 00:00:34]} exd4 {[%clk 01:06:09]} {[%emt
00:00:25]} 11. Nd5 {[%clk 01:33:40]} {[%emt 00:00:08]} Bd6 {[%clk 00:36:16]}
{[%emt 00:30:22]} 12. Qh5 {[%clk 01:02:52]} {[%emt 00:31:19]} f6 {[%clk
00:19:51]} {[%emt 00:16:55]} 13. Bf4 {[%clk 01:00:59]} {[%emt 00:02:23]} g6
{[%clk 00:06:16]} {[%emt 00:14:06]} 14. Qh6 {[%clk 01:00:36]} {[%emt 00:00:53]}
Bxf4 {[%clk 00:04:03]} {[%emt 00:02:41]} 15. Qxf4 {[%clk 00:59:54]} {[%emt
00:01:13]} g5 {[%clk 00:02:58]} {[%emt 00:01:35]} 16. Qxd4 {[%clk 00:59:08]}
{[%emt 00:01:16]} Rf7 {[%clk 00:00:32]} {[%emt 00:02:55]} 17. b6 {[%clk
00:54:51]} {[%emt 00:04:48]} cxb6 {[%clk 00:00:37]} {[%emt 00:00:25]} 18. Nxb6
{[%clk 00:55:09]} {[%emt 00:00:12]} Rb8 {[%clk 00:00:31]} {[%emt 00:00:36]} 19.
Qd6 {[%clk 00:55:16]} {[%emt 00:00:24]} Qxb6 {[%clk 00:00:34]} {[%emt
00:00:27]} 20. Re8+ {[%clk 00:55:28]} {[%emt 00:00:17]} 1-0